bitfinex-derivatives/quotes_BTCF0:USTF0_20250108
["timestamp","ask_amount","ask_price","bid_price","bid_amount"]
[1736313508113,0.99335096,96546.0,96545.0,0.47870349]
[1736313508715,0.99335096,96546.0,96545.0,0.01406349]
[1736313508915,0.99335096,96546.0,96545.0,0.01506349]
[1736313509218,1.29335096,96546.0,96509.0,0.4646]
[1736313509513,0.3608,96524.0,96510.0,0.10340925]
[1736313509707,0.3608,96524.0,96515.0,0.051813]
[1736313509909,0.5,96522.0,96521.0,0.051809]
[1736313510511,0.65643303,96522.0,96521.0,0.051809]
[1736313510907,0.15643303,96522.0,96521.0,0.051809]
[1736313511215,0.001,96524.0,96521.0,0.051809]
[1736313511714,0.15468452,96522.0,96521.0,0.051809]
[1736313511912,0.001,96524.0,96521.0,0.051809]
[1736313511913,0.15468452,96523.0,96521.0,0.051809]
[1736313512108,0.3608,96532.0,96522.0,0.051809]
[1736313512308,0.15468452,96523.0,96522.0,0.051809]
[1736313512809,0.3608,96532.0,96522.0,0.051809]
[1736313513009,0.5,96531.0,96522.0,0.051809]
[1736313513209,0.15456202,96523.0,96522.0,0.051809]
[1736313513409,0.51536202,96531.0,96522.0,0.051809]
[1736313513707,0.51565918,96523.0,96521.0,0.003]
[1736313513907,0.3608,96523.0,96522.0,0.007]
[1736313514221,0.51565918,96523.0,96522.0,0.007]
[1736313514414,1.01665918,96523.0,96522.0,0.007]
[1736313514816,1.01665918,96523.0,96522.0,0.009]
[1736313515622,1.01665918,96523.0,96522.0,0.007]
[1736313516128,1.01565918,96523.0,96522.0,0.005]
[1736313516825,0.5,96516.0,96515.0,0.297513]
[1736313517325,0.15487889,96516.0,96515.0,0.297513]
[1736313517523,0.15487889,96516.0,96514.0,0.01084286]
[1736313517722,0.15444143,96520.0,96501.0,0.2582]
[1736313517923,0.15500144,96521.0,96501.0,0.2582]
[1736313517924,0.3608,96511.0,96501.0,0.2582]
[1736313518122,0.5,96510.0,96501.0,0.2582]
[1736313518423,0.15444143,96510.0,96501.0,0.2582]
[1736313518625,0.65444143,96510.0,96501.0,0.2582]
[1736313518926,0.15444143,96510.0,96503.0,0.051819]
[1736313519322,0.65444143,96510.0,96503.0,0.051819]
[1736313519516,0.15444143,96510.0,96509.0,0.47574555]
[1736313519922,0.15444143,96510.0,96509.0,0.47974555]
[1736313520224,0.15444143,96510.0,96509.0,0.48074555]
[1736313521117,0.15544143,96510.0,96509.0,0.48274555]
[1736313521720,0.13353748,96510.0,96509.0,0.48374555]
[1736313522124,0.13353748,96510.0,96509.0,0.73754555]
[1736313522623,0.13353748,96510.0,96509.0,0.73654555]
[1736313522819,0.13253748,96510.0,96509.0,0.73454555]
[1736313523323,0.13353748,96510.0,96509.0,0.73754555]
[1736313524029,0.13253748,96510.0,96509.0,0.73554555]
[1736313524828,0.13253748,96510.0,96509.0,0.73454555]
[1736313525322,0.1148068,96510.0,96509.0,0.26994555]
[1736313525624,0.6148068,96510.0,96509.0,0.26994555]
[1736313525824,0.6158068,96510.0,96509.0,0.27194555]
[1736313526027,0.1158068,96510.0,96509.0,0.27194555]
[1736313526419,0.1148068,96510.0,96509.0,0.26994555]
[1736313528029,0.1076768,96510.0,96509.0,0.63074555]
[1736313528227,0.5,96520.0,96518.0,0.051811]
[1736313528428,0.3608,96523.0,96522.0,0.051809]
[1736313528827,0.51675051,96523.0,96522.0,0.051809]
[1736313529621,0.51875051,96523.0,96522.0,0.051809]
[1736313530129,0.15795051,96523.0,96522.0,0.051809]
[1736313530322,0.05072051,96523.0,96522.0,0.051809]
[1736313530722,0.5,96532.0,96523.0,0.051808]
[1736313530923,0.3608,96542.0,96524.0,0.051807]
[1736313530924,0.5,96530.0,96524.0,0.051807]
[1736313531122,0.15504031,96530.0,96524.0,0.051807]
[1736313531330,0.5,96532.0,96524.0,0.051807]
[1736313531730,0.15501227,96529.0,96525.0,0.051807]
[1736313531932,0.5,96530.0,96525.0,0.051807]
[1736313532121,0.15501227,96528.0,96525.0,0.051807]
[1736313532317,0.15501227,96528.0,96526.0,0.051807]
[1736313532528,0.65501227,96529.0,96526.0,0.051807]
[1736313532833,0.15477058,96527.0,96526.0,0.051807]
[1736313533223,0.5,96528.0,96526.0,0.051807]
[1736313533525,0.65507722,96527.0,96526.0,0.051807]
[1736313533731,0.65507722,96527.0,96526.0,0.052807]
[1736313533930,0.5,96528.0,96526.0,0.052807]
[1736313534225,0.15507722,96527.0,96526.0,0.053807]
[1736313534427,0.15507722,96527.0,96526.0,0.002]
[1736313534634,0.15544855,96535.0,96526.0,0.002]
[1736313534832,0.5,96536.0,96526.0,0.002]
[1736313534833,0.65544855,96527.0,96526.0,0.002]
[1736313535028,0.15544855,96527.0,96526.0,0.002]
[1736313535227,0.00052001,96528.0,96526.0,0.002]
[1736313535427,0.15544855,96534.0,96526.0,0.002]
[1736313535428,0.15455374,96527.0,96526.0,0.002]
[1736313535830,0.5,96529.0,96526.0,0.001]
[1736313536029,0.15455374,96533.0,96526.0,0.002]
[1736313536230,0.15455374,96527.0,96526.0,0.002]
[1736313536531,0.1559199,96532.0,96526.0,0.001]
[1736313536733,0.1559199,96534.0,96526.0,0.002]
[1736313536930,0.1559199,96527.0,96526.0,0.001]
[1736313537125,0.1559199,96527.0,96526.0,0.002]
[1736313537330,0.10448188,96531.0,96526.0,0.002]
[1736313537520,0.15510402,96527.0,96526.0,0.002]
[1736313537924,0.15566403,96528.0,96526.0,0.002]
[1736313538129,0.15510402,96527.0,96526.0,0.002]
[1736313538635,0.15443581,96529.0,96526.0,0.002]
[1736313538834,0.15443581,96527.0,96526.0,0.002]
[1736313539030,0.15443581,96527.0,96526.0,0.001]
[1736313539236,0.50052001,96534.0,96526.0,0.002]
[1736313539237,0.15443581,96533.0,96526.0,0.002]
[1736313539630,0.15602825,96527.0,96526.0,0.001]
[1736313539828,0.15602825,96532.0,96526.0,0.052807]
[1736313540024,0.15602825,96532.0,96526.0,0.053807]
[1736313540235,0.15602825,96527.0,96526.0,0.053807]
[1736313540439,0.15628405,96531.0,96526.0,0.052807]
[1736313540632,0.15628405,96531.0,96526.0,0.053807]
[1736313540827,0.15628405,96527.0,96526.0,0.053807]
[1736313541228,0.15628405,96530.0,96526.0,0.053807]
[1736313541530,0.15628405,96531.0,96526.0,0.053807]
[1736313541725,0.15619719,96532.0,96526.0,0.053807]
[1736313541929,0.15619719,96530.0,96526.0,0.053807]
[1736313542331,0.15619719,96531.0,96526.0,0.053807]
[1736313542524,0.15619719,96532.0,96526.0,0.052807]
[1736313542729,0.15623832,96529.0,96526.0,0.053807]
[1736313543238,0.50052001,96535.0,96526.0,0.053807]
[1736313543534,0.15623832,96528.0,96526.0,0.053807]
[1736313543834,0.11151751,96534.0,96526.0,0.053807]
[1736313544134,0.15600845,96528.0,96526.0,0.053807]
[1736313544537,0.11151751,96534.0,96526.0,0.053807]
[1736313544739,0.50052001,96535.0,96533.0,0.412603]
[1736313544940,0.5,96535.0,96533.0,0.412603]
[1736313545240,0.15505934,96534.0,96533.0,0.412603]
[1736313545438,0.03047368,96534.0,96533.0,0.412603]
[1736313545630,0.47661369,96535.0,96533.0,0.412603]
[1736313545830,0.5,96540.0,96539.0,0.0518]
[1736313546031,0.11151751,96546.0,96545.0,0.051797]
[1736313546231,0.11151751,96546.0,96545.0,0.412597]
[1736313546535,0.15609552,96546.0,96545.0,0.412597]
[1736313546934,0.15477747,96551.0,96545.0,0.412597]
[1736313547136,0.50207419,96552.0,96545.0,0.412597]
[1736313547137,0.15477747,96546.0,96545.0,0.412597]
[1736313547538,0.15500986,96551.0,96545.0,0.412597]
[1736313547739,0.16200986,96546.0,96545.0,0.413597]
[1736313548039,0.009,96546.0,96545.0,0.413597]
[1736313548434,0.16400986,96546.0,96545.0,0.413597]
[1736313549032,0.16400986,96546.0,96545.0,0.42466009]
[1736313549637,0.12694281,96546.0,96545.0,0.42466009]
[1736313549833,0.11468677,96546.0,96545.0,0.42466009]
[1736313550034,0.05057373,96546.0,96545.0,0.42466009]
[1736313550343,0.4691602,96559.0,96545.0,0.37286309]
[1736313550538,0.09951701,96561.0,96560.0,0.051789]
[1736313550733,0.06000533,96561.0,96560.0,0.051789]
[1736313550930,0.15481304,96561.0,96560.0,0.051789]
[1736313551336,0.15481304,96561.0,96559.0,0.2496]
[1736313551337,0.07389001,96563.0,96562.0,0.051788]
[1736313551537,0.07083001,96563.0,96562.0,0.051788]
[1736313551738,0.15512464,96568.0,96563.0,0.051787]
[1736313551939,0.50052001,96569.0,96566.0,0.3608]
[1736313552138,0.5,96569.0,96566.0,0.3608]
[1736313552341,0.15512464,96567.0,96566.0,0.3608]
[1736313552543,0.15512464,96568.0,96566.0,0.3608]
[1736313552842,0.15433577,96567.0,96566.0,0.3608]
[1736313553243,0.15433577,96568.0,96566.0,0.3608]
[1736313553439,0.15585695,96567.0,96566.0,0.3618]
[1736313553653,0.15585695,96567.0,96566.0,0.415585]
[1736313553949,0.15585695,96568.0,96566.0,0.415585]
[1736313554153,0.15585695,96567.0,96566.0,0.415585]
[1736313554445,0.15585695,96568.0,96566.0,0.415585]
[1736313554643,0.15449325,96567.0,96566.0,0.415585]
[1736313554945,0.15449325,96568.0,96566.0,0.415585]
[1736313555340,0.50056001,96569.0,96566.0,0.415585]
[1736313555539,0.5,96569.0,96566.0,0.414585]
[1736313555741,0.15509149,96567.0,96566.0,0.414585]
[1736313555948,0.15509149,96568.0,96566.0,0.414585]
[1736313556251,0.50056001,96569.0,96566.0,0.412585]
[1736313556541,0.15438367,96567.0,96566.0,0.414585]
[1736313556951,0.50056001,96569.0,96566.0,0.414585]
[1736313557146,0.15438367,96567.0,96566.0,0.414585]
[1736313557646,0.15524267,96567.0,96566.0,0.414585]
[1736313558050,0.15524267,96568.0,96566.0,0.414585]
[1736313558435,0.15524267,96567.0,96566.0,0.414585]
[1736313558640,0.15563798,96568.0,96566.0,0.414585]
[1736313558946,0.15563798,96567.0,96566.0,0.414585]
[1736313559249,0.15563798,96568.0,96566.0,0.414585]
[1736313559652,0.1545857,96567.0,96566.0,0.414585]
[1736313559840,0.50052001,96569.0,96566.0,0.414585]
[1736313560041,0.1545857,96568.0,96566.0,0.414585]
[1736313560336,0.12280722,96567.0,96566.0,0.414585]
[1736313560547,0.00052001,96569.0,96567.0,0.051785]
[1736313560737,0.15518874,96568.0,96567.0,0.051785]
[1736313560943,0.1,96571.0,96566.0,0.3628]
[1736313561153,0.1,96571.0,96570.0,0.051783]
[1736313561446,0.17596991,96571.0,96570.0,0.051783]
[1736313561648,0.17002991,96571.0,96570.0,0.412583]
[1736313566251,0.14624134,96571.0,96570.0,0.412583]
[1736313567251,0.11826491,96571.0,96570.0,0.412583]
[1736313568358,0.09016491,96571.0,96570.0,0.412583]
[1736313569856,0.08753491,96571.0,96570.0,0.412583]
[1736313570453,0.02594539,96571.0,96570.0,0.412583]
[1736313571355,0.00155365,96578.0,96570.0,0.3608]
[1736313571561,0.00155365,96578.0,96577.0,0.05178]
[1736313571958,0.15674232,96578.0,96577.0,0.05178]
[1736313572153,0.08259658,96578.0,96577.0,0.05178]
[1736313572362,0.06448274,96578.0,96577.0,0.05178]
[1736313573161,0.03950274,96578.0,96577.0,0.05178]
[1736313573568,0.47980393,96590.0,96583.0,0.051776]
[1736313573863,0.40010132,96590.0,96589.0,0.412573]
[1736313574257,0.55594773,96590.0,96589.0,0.412573]
[1736313574559,0.34244303,96590.0,96589.0,0.412573]
[1736313574755,0.11483964,96590.0,96589.0,0.412573]
[1736313574955,0.09572063,96595.0,96594.0,0.05177]
[1736313575356,0.2512337,96595.0,96594.0,0.05177]
[1736313575666,0.13874768,96595.0,96594.0,0.05177]
[1736313575857,0.11802053,96595.0,96594.0,0.05177]
[1736313576764,0.06621928,96595.0,96594.0,0.05177]
[1736313577768,0.06621928,96595.0,96594.0,0.06889047]
[1736313578065,0.05218292,96595.0,96594.0,0.06889047]
[1736313578265,0.43220323,96596.0,96594.0,0.06889047]
[1736313578466,0.35523322,96596.0,96594.0,0.06889047]
[1736313578659,0.070272,96600.0,96594.0,0.01712047]
[1736313578858,0.070272,96600.0,96599.0,0.412568]
[1736313579263,0.226174,96600.0,96599.0,0.412568]
[1736313580066,0.1619308,96600.0,96599.0,0.412568]
[1736313580269,0.15932737,96600.0,96599.0,0.412568]
[1736313580453,0.13553445,96600.0,96599.0,0.412568]
[1736313581963,0.13553445,96600.0,96599.0,0.42986264]
[1736313582463,0.2483,96616.0,96605.0,0.051764]
[1736313582662,0.7483,96616.0,96607.0,0.3608]
[1736313582971,0.15551667,96615.0,96607.0,0.3608]
[1736313583964,0.65551667,96615.0,96610.0,0.051762]
[1736313584155,0.15551667,96615.0,96607.0,0.3608]
[1736313584354,0.15551667,96615.0,96613.0,0.05176]
[1736313585462,0.15599741,96617.0,96615.0,0.051759]
[1736313585666,0.15599741,96616.0,96615.0,0.051759]
[1736313586165,0.1,96619.0,96615.0,0.051759]
[1736313586464,0.15499522,96616.0,96615.0,0.051759]
[1736313586766,0.1,96619.0,96615.0,0.052759]
[1736313587081,0.15624317,96616.0,96615.0,0.052759]
[1736313587268,0.15624317,96617.0,96615.0,0.052759]
[1736313587469,0.15624317,96616.0,96615.0,0.052759]
[1736313587858,0.15609485,96617.0,96615.0,0.052759]
[1736313588067,0.15609485,96616.0,96615.0,0.052759]
[1736313588265,0.1,96619.0,96615.0,0.06980353]
[1736313588454,0.15609485,96617.0,96615.0,0.06980353]
[1736313588660,0.15557777,96616.0,96615.0,0.01804453]
[1736313588864,0.1,96619.0,96615.0,0.01804453]
[1736313589173,0.15557777,96617.0,96615.0,0.01804453]
[1736313589463,0.6,96619.0,96615.0,0.01804453]
[1736313589869,0.15462555,96616.0,96615.0,0.01804453]
[1736313590066,0.15462555,96616.0,96596.0,0.3608]
[1736313590067,0.3608,96616.0,96599.0,0.3608]
[1736313590461,0.5,96606.0,96599.0,0.3608]
[1736313590657,0.4785,96605.0,96597.0,0.48159206]
[1736313590968,0.63453425,96605.0,96597.0,0.48159206]
[1736313591361,1.13453425,96605.0,96597.0,0.48159206]
[1736313592767,1.13453425,96605.0,96598.0,0.3608]
[1736313593474,0.2243,96604.0,96598.0,0.412568]
[1736313593771,0.1558056,96603.0,96598.0,0.412568]
[1736313594368,0.1558056,96603.0,96598.0,0.051768]
[1736313594766,0.6558056,96603.0,96598.0,0.051768]
[1736313595173,0.1558056,96603.0,96598.0,0.051768]
[1736313595370,0.6558056,96603.0,96598.0,0.051768]
[1736313595872,0.6558056,96603.0,96601.0,0.051766]
[1736313596670,0.63487468,96603.0,96601.0,0.051766]
[1736313597561,0.13487468,96603.0,96601.0,0.051766]
[1736313599377,0.13487468,96603.0,96597.0,0.48159206]
[1736313599576,0.63487468,96603.0,96597.0,0.53336006]
[1736313599877,0.13487468,96603.0,96597.0,0.53336006]
[1736313600077,0.63487468,96603.0,96597.0,0.53336006]
[1736313600276,0.63487468,96603.0,96598.0,0.051768]
[1736313600470,0.13487468,96603.0,96598.0,0.051768]
[1736313600670,0.63487468,96603.0,96598.0,0.051768]
[1736313600976,0.13487468,96603.0,96597.0,0.48159206]
[1736313601173,0.13487468,96603.0,96597.0,0.01723206]
[1736313601381,0.63487468,96603.0,96597.0,0.3608]
[1736313601675,0.13487468,96603.0,96597.0,0.3608]
[1736313601877,0.63487468,96603.0,96597.0,0.3608]
[1736313602282,0.63487468,96603.0,96585.0,0.37769318]
[1736313602283,0.5,96594.0,96589.0,0.051773]
[1736313602469,0.3608,96591.0,96585.0,0.01689318]
[1736313602778,0.15468827,96590.0,96585.0,0.051775]
[1736313602966,0.15468827,96590.0,96586.0,0.051775]
[1736313603562,0.15468827,96590.0,96580.0,0.01693284]
[1736313603773,0.65468827,96590.0,96588.0,0.051774]
[1736313603981,0.5,96590.0,96588.0,0.051774]
[1736313604164,0.2266,96593.0,96588.0,0.051774]
[1736313604369,0.15540858,96589.0,96588.0,0.051774]
[1736313604665,0.15540858,96591.0,96588.0,0.051774]
[1736313604976,0.65452677,96589.0,96577.0,0.48142529]
[1736313605179,0.5,96581.0,96577.0,0.46432]
[1736313605375,0.2472,96580.0,96577.0,0.46432]
[1736313605569,0.40172677,96580.0,96577.0,0.46432]
[1736313605874,0.7472,96580.0,96577.0,0.48114743]
[1736313606075,0.15498924,96579.0,96577.0,0.48114743]
[1736313606377,0.15498924,96579.0,96577.0,0.48614743]
[1736313606582,0.15498924,96579.0,96577.0,0.48814743]
[1736313607277,0.65498924,96579.0,96577.0,0.48814743]
[1736313607676,0.15498924,96579.0,96577.0,0.02382743]
[1736313607871,0.65498924,96579.0,96560.0,0.051788]
[1736313608179,0.8608,96570.0,96551.0,0.2406]
[1736313608368,0.2244,96569.0,96554.0,0.051791]
[1736313608570,0.10340925,96564.0,96551.0,0.01693609]
[1736313608874,0.5,96554.0,96550.0,0.3608]
[1736313609374,0.89602173,96553.0,96550.0,0.3608]
[1736313609676,0.2415,96553.0,96550.0,0.37823112]
[1736313609881,0.7415,96553.0,96550.0,0.01743112]
[1736313610073,0.15616123,96552.0,96545.0,0.051796]
[1736313610273,0.15616123,96552.0,96542.0,0.3608]
[1736313610274,0.65616123,96552.0,96542.0,0.3608]
[1736313610581,0.3608,96543.0,96542.0,0.01702717]
[1736313610876,0.51661776,96543.0,96532.0,0.051803]
[1736313611079,0.15581776,96543.0,96541.0,0.3608]
[1736313611279,0.65581776,96543.0,96541.0,0.3608]
[1736313611584,0.15581776,96549.0,96541.0,0.051799]
[1736313611877,0.1549626,96542.0,96541.0,0.051799]
[1736313612070,0.501,96543.0,96541.0,0.051799]
[1736313612268,0.1549626,96542.0,96541.0,0.051799]
[1736313612872,0.1549626,96542.0,96541.0,0.058799]
[1736313613173,0.5,96542.0,96541.0,0.058799]
[1736313613370,0.5,96543.0,96541.0,0.058799]
[1736313613573,0.15449642,96542.0,96541.0,0.057799]
[1736313613774,0.10340925,96560.0,96541.0,0.057799]
[1736313613975,0.5,96542.0,96541.0,0.057799]
[1736313614281,0.15618406,96542.0,96541.0,0.057799]
[1736313614476,0.5,96543.0,96541.0,0.057799]
[1736313614674,0.15443843,96542.0,96541.0,0.057799]
[1736313615188,0.5,96543.0,96541.0,0.059799]
[1736313615380,0.15443843,96542.0,96541.0,0.059799]
[1736313615682,0.65443843,96542.0,96541.0,0.057799]
[1736313615878,0.15443843,96542.0,96541.0,0.057799]
[1736313616083,0.5,96543.0,96541.0,0.057799]
[1736313616272,0.15588481,96542.0,96541.0,0.061799]
[1736313616476,0.65588481,96542.0,96541.0,0.061799]
[1736313616885,0.5,96543.0,96541.0,0.061799]
[1736313617094,0.15527183,96542.0,96541.0,0.061799]
[1736313617382,0.5,96542.0,96541.0,0.061799]
[1736313617781,0.15584455,96542.0,96541.0,0.061799]
[1736313618177,0.5,96542.0,96541.0,0.061799]
[1736313618377,0.5,96543.0,96541.0,0.057799]
[1736313618579,0.15584455,96542.0,96541.0,0.057799]
[1736313618974,0.5,96543.0,96541.0,0.057799]
[1736313619179,0.5,96542.0,96541.0,0.057799]
[1736313619384,0.65610192,96542.0,96541.0,0.056799]
[1736313619590,0.5,96543.0,96541.0,0.059799]
[1736313620089,0.65624017,96542.0,96541.0,0.052799]
[1736313620292,0.49745621,96543.0,96541.0,0.056799]
[1736313620486,0.3608,96567.0,96541.0,0.056799]
[1736313620487,0.3608,96567.0,96558.0,0.051789]
[1736313620990,0.26632605,96566.0,96563.0,0.051787]
[1736313621178,0.26632605,96566.0,96562.0,0.3608]
[1736313621382,0.76632605,96566.0,96565.0,0.051786]
[1736313621877,0.26632605,96566.0,96565.0,0.051786]
[1736313622074,0.15482745,96566.0,96565.0,0.051786]
[1736313622479,0.15782745,96566.0,96565.0,0.051786]
[1736313622675,0.15782745,96566.0,96565.0,0.02662831]
[1736313622879,0.15782745,96566.0,96562.0,0.3608]
[1736313622880,0.5,96566.0,96562.0,0.3608]
[1736313623086,0.5165773,96566.0,96565.0,0.001]
[1736313623484,1.0165773,96566.0,96565.0,0.001]
[1736313625793,1.0175773,96566.0,96554.0,0.051792]
[1736313626291,0.10340925,96564.0,96554.0,0.051792]
[1736313626492,1.0175773,96566.0,96554.0,0.051792]
[1736313626690,0.15590198,96563.0,96554.0,0.07883739]
[1736313626992,0.15434341,96565.0,96555.0,0.051791]
[1736313627296,0.8618,96566.0,96554.0,0.001]
[1736313627297,0.3608,96557.0,96554.0,0.001]
[1736313627594,0.15434341,96556.0,96542.0,0.051798]
[1736313627783,0.3608,96543.0,96542.0,0.051798]
[1736313628184,0.51512391,96543.0,96533.0,0.02799258]
[1736313628383,1.01512391,96543.0,96533.0,0.02799258]
[1736313628583,1.01512391,96543.0,96537.0,0.051801]
[1736313629181,1.01512391,96543.0,96542.0,0.001]
[1736313631291,1.01512391,96543.0,96539.0,0.0518]
[1736313631891,1.01512391,96543.0,96534.0,0.051802]
[1736313632100,1.01512391,96543.0,96542.0,0.001]
[1736313632497,1.01512391,96543.0,96539.0,0.003]
[1736313632993,1.01512391,96543.0,96539.0,0.001]
[1736313633790,1.01512391,96543.0,96534.0,0.056802]
[1736313633990,0.3608,96535.0,96534.0,0.005]
[1736313634388,0.51562532,96535.0,96534.0,0.005]
[1736313634588,1.01562532,96535.0,96534.0,0.005]
[1736313635289,1.01562532,96535.0,96534.0,0.004]
[1736313636098,1.01562532,96535.0,96534.0,0.005]
[1736313636499,1.01562532,96535.0,96521.0,0.051809]
[1736313636801,0.10340925,96531.0,96522.0,0.051809]
[1736313637002,0.10340925,96531.0,96523.0,0.051808]
[1736313637302,0.15488638,96530.0,96524.0,0.051808]
[1736313638201,0.65488638,96530.0,96524.0,0.051808]
[1736313638388,0.15488638,96530.0,96525.0,0.051807]
[1736313638587,0.65488638,96530.0,96528.0,0.051806]
[1736313638996,0.15588638,96530.0,96528.0,0.051806]
[1736313639187,0.65588638,96530.0,96528.0,0.051806]
[1736313639605,0.15588638,96530.0,96528.0,0.051806]
[1736313639799,0.01668638,96535.0,96530.0,0.051804]
[1736313640101,0.5,96530.0,96528.0,0.053806]
[1736313640498,0.1803,96550.0,96541.0,0.051798]
[1736313640705,0.1803,96550.0,96542.0,0.051798]
[1736313641002,0.15574237,96548.0,96542.0,0.051798]
[1736313641491,0.65574237,96548.0,96542.0,0.051798]
[1736313642001,0.65574237,96548.0,96540.0,0.3608]
[1736313643402,0.3608,96542.0,96515.0,0.3535]
[1736313643596,0.10340925,96530.0,96515.0,0.3535]
[1736313643797,0.10340925,96530.0,96528.0,0.051805]
[1736313643986,0.15478194,96529.0,96528.0,0.051805]
[1736313644392,0.5,96530.0,96528.0,0.051805]
[1736313644694,0.15478194,96529.0,96528.0,0.051805]
[1736313645089,0.65461494,96530.0,96528.0,0.057805]
[1736313645290,0.15461494,96529.0,96528.0,0.006]
[1736313645594,0.15461494,96531.0,96528.0,0.006]
[1736313645595,0.5,96530.0,96528.0,0.057806]
[1736313645795,0.15461494,96531.0,96528.0,0.057806]
[1736313645991,0.15629302,96529.0,96528.0,0.057806]
[1736313646301,0.5,96530.0,96528.0,0.059806]
[1736313646502,0.21494685,96541.0,96528.0,0.059806]
[1736313646702,0.15629302,96529.0,96528.0,0.059806]
[1736313647114,0.15535134,96540.0,96528.0,0.059806]
[1736313647306,0.13051443,96541.0,96530.0,0.051804]
[1736313647695,0.65535134,96540.0,96530.0,0.051804]
[1736313647899,0.65535134,96540.0,96531.0,0.051804]
[1736313648103,0.15535134,96540.0,96531.0,0.051804]
[1736313648300,0.65535134,96540.0,96531.0,0.051804]
[1736313648502,0.65535134,96540.0,96532.0,0.051804]
[1736313648707,0.15535134,96540.0,96532.0,0.051804]
[1736313648906,0.65535134,96540.0,96532.0,0.051804]
[1736313649312,0.15535134,96540.0,96532.0,0.051804]
[1736313649601,0.15535134,96540.0,96531.0,0.005]
[1736313649602,0.65535134,96540.0,96531.0,0.005]
[1736313649808,0.3608,96533.0,96531.0,0.005]
[1736313650005,0.1746,96532.0,96531.0,0.005]
[1736313650308,0.33020072,96532.0,96531.0,0.005]
[1736313650700,0.15560072,96532.0,96530.0,0.051805]
[1736313650898,0.65560072,96532.0,96530.0,0.051805]
[1736313651295,0.15560072,96532.0,96531.0,0.005]
[1736313651507,0.65560072,96532.0,96531.0,0.005]
[1736313651908,0.65560072,96532.0,96530.0,0.051805]
[1736313652107,0.65560072,96532.0,96530.0,0.056805]
[1736313652512,0.65560072,96532.0,96531.0,0.007]
[1736313653202,0.65560072,96532.0,96531.0,0.005]
[1736313654299,0.65560072,96532.0,96530.0,0.058805]
[1736313654811,0.65560072,96532.0,96530.0,0.053805]
[1736313655007,0.65560072,96532.0,96531.0,0.005]
[1736313655510,0.65560072,96532.0,96531.0,0.002]
[1736313657010,0.65560072,96532.0,96531.0,0.3628]
[1736313657208,0.65560072,96532.0,96531.0,0.3678]
[1736313657909,0.38130072,96532.0,96531.0,0.7286]
[1736313658115,0.1115376,96541.0,96540.0,0.0518]
[1736313658298,0.3608,96555.0,96540.0,0.3608]
[1736313658299,0.1115376,96549.0,96540.0,0.3608]
[1736313658498,0.1115376,96549.0,96548.0,0.412595]
[1736313658712,0.6115376,96549.0,96548.0,0.412595]
[1736313658913,0.76723915,96549.0,96548.0,0.412595]
[1736313659106,0.26723915,96549.0,96548.0,0.412595]
[1736313659309,0.15570155,96549.0,96548.0,0.412595]
[1736313659704,0.5,96549.0,96548.0,0.412595]
[1736313659904,0.65628741,96549.0,96548.0,0.412595]
[1736313660119,0.15628741,96549.0,96548.0,0.412595]
[1736313660413,0.5,96559.0,96549.0,0.051795]
[1736313660605,0.15628741,96562.0,96561.0,0.051788]
[1736313660807,0.1115376,96564.0,96558.0,0.3608]
[1736313661115,0.1115376,96564.0,96563.0,0.051787]
[1736313661310,0.6115376,96564.0,96563.0,0.051787]
[1736313661615,0.15592091,96564.0,96563.0,0.051787]
[1736313661799,0.65592091,96564.0,96563.0,0.051787]
[1736313662004,0.15574775,96569.0,96563.0,0.051787]
[1736313662206,0.15574775,96569.0,96565.0,0.051786]
[1736313662405,0.15574775,96571.0,96565.0,0.051786]
[1736313662612,0.15574775,96568.0,96565.0,0.051786]
[1736313663012,0.15583469,96570.0,96565.0,0.051786]
[1736313663212,0.15583469,96567.0,96565.0,0.051786]
[1736313663515,0.15583469,96568.0,96565.0,0.051786]
[1736313663710,0.5,96567.0,96565.0,0.051786]
[1736313663907,0.15524001,96566.0,96565.0,0.051786]
[1736313664408,0.65524001,96566.0,96565.0,0.051786]
[1736313664615,0.5,96566.0,96565.0,0.051786]
[1736313664812,0.15524001,96568.0,96567.0,0.051785]
[1736313665113,0.001,96569.0,96567.0,0.051785]
[1736313665315,0.6558731,96568.0,96567.0,0.051785]
[1736313665613,0.1558731,96568.0,96567.0,0.051785]
[1736313665914,0.5,96568.0,96567.0,0.051785]
[1736313666113,0.5,96568.0,96567.0,0.412585]
[1736313666422,0.65532469,96568.0,96567.0,0.412585]
[1736313666717,0.15532469,96568.0,96567.0,0.412585]
[1736313667103,0.65532469,96568.0,96567.0,0.412585]
[1736313667308,0.15532469,96568.0,96567.0,0.412585]
[1736313667510,0.50155405,96572.0,96567.0,0.412585]
[1736313667511,0.15505288,96571.0,96567.0,0.3608]
[1736313667810,0.15505288,96568.0,96567.0,0.412585]
[1736313668013,0.002,96569.0,96567.0,0.412585]
[1736313668211,0.15530165,96570.0,96569.0,0.051784]
[1736313668407,0.50155405,96572.0,96571.0,0.051783]
[1736313668717,0.1568557,96572.0,96571.0,0.051783]
[1736313670107,0.1578557,96572.0,96571.0,0.051783]
[1736313670320,0.1598557,96572.0,96571.0,0.051783]
[1736313670513,0.15830165,96572.0,96571.0,0.051783]
[1736313671013,0.15830165,96572.0,96567.0,0.3608]
[1736313671409,0.65830165,96572.0,96558.0,0.02721655]
[1736313671612,0.65830165,96572.0,96551.0,0.17045343]
[1736313671613,0.5,96569.0,96551.0,0.17045343]
[1736313671817,0.5,96569.0,96560.0,0.3608]
[1736313672021,0.15586008,96568.0,96560.0,0.3608]
[1736313672517,0.15586008,96571.0,96560.0,0.3608]
[1736313672718,0.15586008,96567.0,96560.0,0.3608]
[1736313672909,0.15586008,96567.0,96560.0,0.3638]
[1736313673117,0.65543023,96568.0,96560.0,0.3638]
[1736313673309,0.10340925,96570.0,96560.0,0.3638]
[1736313673513,0.1115376,96578.0,96569.0,0.3608]
[1736313673718,0.1115376,96571.0,96569.0,0.3608]
[1736313674022,0.65470215,96570.0,96569.0,0.3608]
[1736313674323,0.1115376,96571.0,96569.0,0.412584]
[1736313674617,0.65470215,96570.0,96569.0,0.412584]